bitfinex-derivatives/quotes_BTCF0:USTF0_20250620
["timestamp","ask_amount","ask_price","bid_price","bid_amount"]
[1750415222246,0.2213622,106160.0,106150.0,1.21079045]
[1750415222748,0.29668957,106160.0,106150.0,1.21079045]
[1750415223349,0.29668957,106160.0,106150.0,0.63755045]
[1750415223548,0.29668957,106160.0,106150.0,1.21179045]
[1750415223849,0.37113394,106160.0,106150.0,1.21179045]
[1750415224041,0.37113394,106160.0,106150.0,1.21279045]
[1750415225852,0.38451026,106160.0,106150.0,1.21279045]
[1750415226747,0.37530801,106160.0,106150.0,1.21279045]
[1750415230257,0.38476381,106160.0,106150.0,0.9686838]
[1750415230445,0.38476381,106160.0,106150.0,1.21279045]
[1750415232060,0.38476381,106160.0,106150.0,0.9686838]
[1750415232259,0.38476381,106160.0,106150.0,1.21279045]
[1750415232453,0.62887046,106160.0,106150.0,1.21279045]
[1750415232648,0.62887046,106160.0,106150.0,0.59145645]
[1750415232855,1.01997046,106160.0,106150.0,0.43447065]
[1750415233252,1.26407711,106160.0,106150.0,1.00827065]
[1750415233659,1.26407711,106160.0,106150.0,0.764164]
[1750415233959,1.26407711,106160.0,106150.0,0.5758]
[1750415234154,1.26407711,106160.0,106150.0,0.7631799]
[1750415234360,1.26407711,106160.0,106150.0,0.5748]
[1750415234553,1.26407711,106160.0,106150.0,0.57468]
[1750415234864,1.26407711,106160.0,106150.0,0.81878665]
[1750415235056,1.01997046,106160.0,106150.0,0.81874665]
[1750415235554,1.26407711,106160.0,106150.0,0.57464]
[1750415235861,1.26507711,106160.0,106150.0,0.57364]
[1750415236161,1.26507711,106160.0,106150.0,0.7620199]
[1750415236360,1.26507711,106160.0,106150.0,0.1883799]
[1750415236562,1.26507711,106160.0,106150.0,0.7620199]
[1750415237263,1.02097046,106160.0,106150.0,0.7620199]
[1750415237663,1.02097046,106160.0,106150.0,1.00612655]
[1750415237857,1.02097046,106160.0,106150.0,0.7620199]
[1750415238163,1.02097046,106160.0,106150.0,1.00612655]
[1750415239262,1.02097046,106160.0,106150.0,0.81774665]
[1750415240462,1.02097046,106160.0,106150.0,0.81754665]
[1750415240763,1.02097046,106160.0,106150.0,1.00592655]
[1750415241561,0.77686381,106160.0,106150.0,1.00592655]
[1750415241765,1.02097046,106160.0,106150.0,1.00592655]
[1750415242959,1.02097046,106160.0,106150.0,0.7618199]
[1750415243160,1.02097046,106160.0,106150.0,1.00592655]
[1750415243666,1.02097046,106160.0,106150.0,0.81754665]
[1750415244062,1.02097046,106160.0,106150.0,1.00592655]
[1750415245166,1.02097046,106160.0,106150.0,0.81754665]
[1750415245365,1.02097046,106160.0,106150.0,1.00592655]
[1750415246857,0.66017046,106160.0,106150.0,1.00592655]
[1750415247164,1.02097046,106160.0,106150.0,1.00592655]
[1750415247760,1.02097046,106160.0,106150.0,0.81754665]
[1750415248358,1.02097046,106160.0,106150.0,1.00592655]
[1750415248676,0.77686381,106160.0,106150.0,1.00592655]
[1750415248860,1.02097046,106160.0,106150.0,1.00592655]
[1750415250166,1.02097046,106160.0,106150.0,1.03922655]
[1750415251268,1.02097046,106160.0,106150.0,0.85084665]
[1750415251467,1.02097046,106160.0,106150.0,1.03922655]
[1750415253467,0.94564309,106160.0,106150.0,1.03922655]
[1750415253871,1.02100861,106160.0,106150.0,1.03922655]
[1750415254167,0.58484309,106160.0,106150.0,1.03922655]
[1750415254361,0.94564309,106160.0,106150.0,1.03922655]
[1750415255270,0.62878064,106160.0,106150.0,1.37922655]
[1750415255562,0.62878064,106160.0,106150.0,1.39232655]
[1750415255767,0.26798064,106160.0,106150.0,1.07232655]
[1750415260070,0.36216785,106160.0,106150.0,1.07232655]
[1750415261076,0.6062745,106160.0,106150.0,1.07232655]
[1750415261267,0.6062745,106160.0,106150.0,0.0664]
[1750415261469,0.6371745,106160.0,106150.0,1.07192655]
[1750415261775,0.9979745,106160.0,106150.0,1.07192655]
[1750415262073,0.90378729,106160.0,106150.0,1.07192655]
[1750415262872,0.65968064,106160.0,106150.0,1.07192655]
[1750415263076,0.90378729,106160.0,106150.0,1.07192655]
[1750415263472,0.90378729,106160.0,106150.0,0.49888655]
[1750415263674,0.90378729,106160.0,106150.0,1.07276655]
[1750415263972,1.03509743,106160.0,106150.0,1.07276655]
[1750415264880,1.12933425,106160.0,106150.0,1.07276655]
[1750415265074,0.99802411,106160.0,106150.0,1.07276655]
[1750415266469,0.99802411,106160.0,106150.0,0.49888655]
[1750415266766,0.99802411,106160.0,106150.0,1.07256655]
[1750415268172,0.1883799,106150.0,106140.0,0.57378445]
[1750415268365,0.43248655,106150.0,106140.0,1.17896445]
[1750415268569,0.43248655,106150.0,106140.0,1.4541711]
[1750415269369,0.43248655,106150.0,106140.0,1.4551711]
[1750415270069,0.43248655,106150.0,106140.0,1.4561711]
[1750415270473,0.51205108,106150.0,106140.0,1.4561711]
[1750415271477,0.26794443,106150.0,106140.0,1.4561711]
[1750415271774,0.51205108,106150.0,106140.0,1.4561711]
[1750415274877,0.26794443,106150.0,106140.0,1.7661711]
[1750415275372,0.26794443,106150.0,106140.0,1.3379578]
[1750415275574,0.26794443,106150.0,106140.0,1.8261711]
[1750415275975,0.19255397,106150.0,106140.0,1.8261711]
[1750415276274,0.19255397,106150.0,106140.0,1.7961711]
[1750415277379,0.19255397,106150.0,106140.0,1.7956511]
[1750415277979,0.19255397,106150.0,106140.0,2.1564511]
[1750415279174,0.19255397,106150.0,106140.0,1.8164511]
[1750415279381,0.19255397,106150.0,106140.0,2.1262911]
[1750415279578,0.1887799,106150.0,106140.0,2.1262911]
[1750415280583,0.19295397,106150.0,106140.0,2.1262911]
[1750415281384,0.19295397,106150.0,106140.0,1.8162911]
[1750415281584,0.43706062,106150.0,106140.0,1.8162911]
[1750415282271,0.19295397,106150.0,106140.0,1.8162911]
[1750415283282,0.43706062,106150.0,106140.0,1.8162511]
[1750415285182,0.43706062,106150.0,106140.0,1.4554511]
[1750415285388,0.43706062,106150.0,106140.0,1.8162511]
[1750415286088,0.43706062,106150.0,106140.0,0.9672378]
[1750415286289,0.51245108,106150.0,106140.0,1.4554511]
[1750415286690,0.43706062,106150.0,106140.0,1.4083525]
[1750415286891,0.46946062,106150.0,106140.0,1.4083525]
[1750415288483,0.46946062,106150.0,106140.0,1.16424585]
[1750415289094,0.46946062,106150.0,106140.0,1.4083525]
[1750415292894,0.54485108,106150.0,106140.0,1.4083525]
[1750415293296,0.46946062,106150.0,106140.0,1.4083525]
[1750415293495,0.54485108,106150.0,106140.0,1.4083525]
[1750415296103,0.30074443,106150.0,106140.0,1.4083525]
[1750415296305,0.54485108,106150.0,106140.0,1.4083525]
[1750415296792,0.54485108,106150.0,106140.0,0.9201392]
[1750415296998,0.54485108,106150.0,106140.0,1.4083525]
[1750415299308,0.54485108,106150.0,106140.0,1.7691525]
[1750415300211,0.54485108,106150.0,106140.0,1.2809392]
[1750415300504,0.54485108,106150.0,106140.0,1.4083525]
[1750415300701,0.30074443,106150.0,106140.0,1.4083525]
[1750415300898,0.26834443,106150.0,106140.0,1.7783525]
[1750415301102,0.51245108,106150.0,106140.0,1.4083525]
[1750415301802,0.51205108,106150.0,106140.0,1.4083525]
[1750415302008,0.51245108,106150.0,106140.0,1.4083525]
[1750415302811,0.26834443,106150.0,106140.0,1.4083525]
[1750415303111,0.51245108,106150.0,106140.0,1.4083525]
[1750415303913,0.51245108,106150.0,106140.0,1.3612553]
[1750415304109,0.54275108,106150.0,106140.0,0.7882953]
[1750415304409,0.54275108,106150.0,106140.0,1.11730865]
[1750415306015,0.54275108,106150.0,106140.0,1.3614153]
[1750415307711,0.54275108,106150.0,106140.0,1.7222153]
[1750415309607,0.54275108,106150.0,106140.0,1.3614153]
[1750415314913,0.29864443,106150.0,106140.0,1.3614153]
[1750415315920,0.54275108,106150.0,106140.0,1.3614153]
[1750415317611,0.29864443,106150.0,106140.0,1.234002]
[1750415317813,0.29864443,106150.0,106140.0,1.7222153]
[1750415318210,0.29447036,106150.0,106140.0,1.7222153]
[1750415319222,0.53857701,106150.0,106140.0,1.7222153]
[1750415319521,0.29447036,106150.0,106140.0,1.7222153]
[1750415320117,0.29447036,106150.0,106140.0,1.234002]
[1750415320322,0.29447036,106150.0,106140.0,1.7222153]
[1750415320723,0.2190799,106150.0,106140.0,1.7222153]
[1750415321122,0.2190799,106150.0,106140.0,1.47810865]
[1750415321331,0.22325397,106150.0,106140.0,1.47810865]
[1750415322016,0.46736062,106150.0,106140.0,1.47810865]
[1750415322422,0.22325397,106150.0,106140.0,1.47810865]
[1750415322722,0.46736062,106150.0,106140.0,1.47810865]
[1750415329130,0.22325397,106150.0,106140.0,1.47810865]
[1750415329432,0.46736062,106150.0,106140.0,1.47810865]
[1750415329630,0.46736062,106150.0,106140.0,1.7222153]
[1750415329931,0.54275108,106150.0,106140.0,1.7222153]
[1750415330724,0.54275108,106150.0,106140.0,1.47810865]
[1750415340342,0.54275108,106150.0,106140.0,0.90498865]
[1750415340542,0.54275108,106150.0,106140.0,1.47750865]
[1750415340732,0.57495108,106150.0,106140.0,1.47750865]
[1750415341335,0.57495108,106150.0,106140.0,1.11670865]
[1750415343033,0.93575108,106150.0,106140.0,0.0646]
[1750415343240,0.1883966,106140.0,106130.0,0.1893539]
[1750415343436,1.17561442,106140.0,106130.0,0.0009422]
[1750415343644,1.17561442,106140.0,106130.0,0.7618765]
[1750415344145,1.1002099,106140.0,106130.0,0.7618765]
[1750415344342,1.19444672,106140.0,106130.0,0.7618765]
[1750415344744,1.19444672,106140.0,106130.0,0.5734622]
[1750415345045,1.19444672,106140.0,106130.0,0.5754622]
[1750415345245,1.19444672,106140.0,106130.0,0.7638766]
[1750415345447,1.19444672,106140.0,106130.0,0.7658766]
[1750415345646,1.19862079,106140.0,106130.0,0.7658766]
[1750415345838,1.19862079,106140.0,106130.0,0.0049422]
[1750415346039,1.19862079,106140.0,106130.0,0.5774622]
[1750415347740,1.19862079,106140.0,106130.0,0.0049422]
[1750415348045,1.19862079,106140.0,106130.0,0.5774622]
[1750415348447,1.19862079,106140.0,106130.0,0.7658765]
[1750415348850,1.19862079,106140.0,106130.0,0.5774622]
[1750415349143,0.71040749,106140.0,106130.0,0.7658765]
[1750415349350,1.19862079,106140.0,106130.0,0.7658765]
[1750415349544,0.86027732,106140.0,106130.0,0.7658765]
[1750415350342,1.10438397,106140.0,106130.0,0.1933565]
[1750415350549,1.10438397,106140.0,106130.0,0.7658765]
[1750415352543,1.10438397,106140.0,106130.0,0.1933565]
[1750415354250,1.17961942,106140.0,106130.0,0.0049422]
[1750415354751,1.17544535,106140.0,106130.0,0.0049422]
[1750415356754,1.30780535,106140.0,106130.0,0.0049422]
[1750415357952,1.31197942,106140.0,106130.0,0.0049422]
[1750415358645,1.23674397,106140.0,106130.0,0.0049422]
[1750415363358,0.74853067,106140.0,106130.0,0.0049422]
[1750415363552,1.23674397,106140.0,106130.0,0.0049422]
[1750415364056,1.31197766,106140.0,106130.0,0.0049422]
[1750415368356,1.23674397,106140.0,106130.0,0.0049422]
[1750415368557,1.33098079,106140.0,106130.0,0.0049422]
[1750415371154,1.32680672,106140.0,106130.0,0.0049422]
[1750415372061,1.33098079,106140.0,106130.0,0.0049422]
[1750415374462,1.23674397,106140.0,106130.0,0.0049422]
[1750415376652,1.3309844,106140.0,106130.0,0.0049422]
[1750415384859,1.46229454,106140.0,106130.0,0.0049422]
[1750415385766,1.36805411,106140.0,106130.0,0.0049422]
[1750415387762,0.87984081,106140.0,106130.0,0.0049422]
[1750415387968,1.36805411,106140.0,106130.0,0.0049422]
[1750415388264,1.36388004,106140.0,106130.0,0.0049422]
[1750415389168,0.1884499,106110.0,106100.0,0.90551511]
[1750415389367,0.43255655,106110.0,106100.0,1.83019511]
[1750415389665,0.50793605,106110.0,106100.0,1.83019511]
[1750415390467,0.50793605,106110.0,106100.0,1.83519511]
[1750415391068,0.50793605,106110.0,106100.0,1.83019511]
[1750415391261,0.50793605,106110.0,106100.0,1.58808846]
[1750415391462,0.50793605,106110.0,106100.0,0.95652106]
[1750415391681,0.50793605,106110.0,106100.0,1.51310771]
[1750415391979,0.51707706,106110.0,106100.0,1.50810771]
[1750415392181,0.51707706,106110.0,106100.0,1.73910771]
[1750415392773,0.51707706,106110.0,106100.0,1.49500106]
[1750415394273,0.49818141,106110.0,106100.0,1.73910771]
[1750415394962,0.49818141,106110.0,106100.0,1.49500106]
[1750415395168,0.49818141,106110.0,106100.0,1.73910771]
[1750415395361,0.53068141,106110.0,106100.0,1.16662771]
[1750415395671,1.18588371,106110.0,106100.0,0.00394246]
[1750415395865,0.94177706,106110.0,106100.0,0.00394246]
[1750415397371,1.18588371,106110.0,106100.0,0.00394246]
[1750415399674,1.11050421,106110.0,106100.0,0.00394246]
[1750415401171,1.18588371,106110.0,106100.0,0.00394246]
[1750415404474,1.19005778,106110.0,106100.0,0.00394246]
[1750415406674,1.18588371,106110.0,106100.0,0.00394246]
[1750415409579,1.19005778,106110.0,106100.0,0.00394246]
[1750415412690,1.18588371,106110.0,106100.0,0.00394246]
[1750415414290,1.11050421,106110.0,106100.0,0.00394246]
[1750415415692,1.11467828,106110.0,106100.0,0.00394246]
[1750415415891,1.18991844,106110.0,106100.0,0.00394246]
[1750415416894,1.11467828,106110.0,106100.0,0.00394246]
[1750415417695,1.11050421,106110.0,106100.0,0.00394246]
[1750415418091,1.24282421,106110.0,106100.0,0.00394246]
[1750415418799,1.11050421,106110.0,106100.0,0.00394246]
[1750415418993,1.24282421,106110.0,106100.0,0.00394246]
[1750415419592,1.33710796,106110.0,106100.0,0.00394246]
[1750415419796,1.24282421,106110.0,106100.0,0.00394246]
[1750415420392,1.33710796,106110.0,106100.0,0.00394246]
[1750415420596,0.1885031,106080.0,106070.0,0.00094273]
[1750415420793,0.75204566,106080.0,106070.0,0.06384273]
[1750415420996,1.11284566,106080.0,106070.0,0.06384273]
[1750415421697,1.0375164,106080.0,106070.0,0.06384273]
[1750415421895,1.1011164,106080.0,106070.0,0.00094273]
[1750415422094,1.19540015,106080.0,106070.0,0.00094273]
[1750415422495,1.19540015,106080.0,106070.0,0.00994273]
[1750415422703,1.2177066,106080.0,106070.0,0.00994273]
[1750415423301,1.2177066,106080.0,106070.0,0.00794273]
[1750415423499,1.2177066,106080.0,106070.0,0.00594273]
[1750415423698,1.29436505,106080.0,106070.0,0.00594273]
[1750415424395,1.27532386,106080.0,106070.0,0.00594273]
[1750415426003,1.40764386,106080.0,106070.0,0.03714273]
[1750415426993,1.40760386,106080.0,106070.0,0.03714273]
[1750415434409,1.42664505,106080.0,106070.0,0.03714273]
[1750415439606,1.42664505,106080.0,106070.0,0.00594273]
[1750415439812,1.3323613,106080.0,106070.0,0.00594273]
[1750415443515,1.42664505,106080.0,106070.0,0.00594273]
[1750415444416,1.2000813,106080.0,106070.0,0.00594273]
[1750415444614,1.3324013,106080.0,106070.0,0.00594273]
[1750415445124,0.60678926,106080.0,106070.0,0.79936988]
[1750415445420,0.60678926,106080.0,106070.0,0.86456988]
[1750415445613,0.28642386,106080.0,106070.0,1.43728988]
[1750415445813,0.02270645,106080.0,106070.0,2.05139653]
[1750415446112,0.02270645,106080.0,106070.0,1.75728988]
[1750415446113,0.2449189,106080.0,106070.0,1.75728988]
[1750415446312,0.07872255,106080.0,106070.0,1.75728988]
[1750415446503,0.2449189,106080.0,106070.0,1.75728988]
[1750415446707,0.26722535,106080.0,106070.0,1.75728988]
[1750415446910,0.07912255,106080.0,106070.0,2.18994053]
[1750415447106,0.07872255,106080.0,106070.0,2.18994053]
[1750415447313,0.07872255,106080.0,106070.0,2.1941146]
[1750415447512,0.0568161,106080.0,106070.0,2.1941146]
[1750415447705,0.26722525,106080.0,106070.0,2.1941146]
[1750415447910,0.26762525,106080.0,106070.0,2.1941146]
[1750415449016,0.26762525,106080.0,106070.0,1.95036914]
[1750415449419,0.07912255,106080.0,106070.0,1.95036914]
[1750415450106,0.07872255,106080.0,106070.0,1.95036914]
[1750415450307,0.07912255,106080.0,106070.0,1.95036914]
[1750415450819,0.07912255,106080.0,106070.0,2.24506914]
[1750415451819,0.07912255,106080.0,106070.0,2.49506914]
[1750415456221,0.07912255,106080.0,106070.0,2.24506914]
[1750415460226,0.02270645,106080.0,106070.0,2.48953698]
[1750415460427,0.01576425,106080.0,106070.0,2.48953698]
[1750415460626,0.01536425,106080.0,106070.0,2.24506914]
[1750415460826,0.0564161,106090.0,106080.0,0.1885029]
[1750415461028,0.0564161,106090.0,106080.0,1.30835074]
[1750415461428,0.2449012,106090.0,106080.0,1.30835074]
[1750415461825,0.0564161,106090.0,106080.0,1.30835074]
[1750415462129,0.0564161,106090.0,106080.0,1.30935074]
[1750415462331,0.0564161,106090.0,106080.0,1.31035074]
[1750415465531,0.0564161,106090.0,106080.0,1.31452481]
[1750415468935,0.0564161,106090.0,106080.0,1.55892393]
[1750415471531,0.0564161,106090.0,106080.0,1.85362393]
[1750415472129,0.0564161,106090.0,106080.0,1.79132393]
[1750415472336,0.07880711,106090.0,106080.0,1.85372393]
[1750415473238,0.07880711,106090.0,106080.0,2.21452393]
[1750415474239,0.02239101,106090.0,106080.0,2.21452393]
[1750415474744,0.02239101,106090.0,106080.0,2.21034986]
[1750415475240,0.09760562,106090.0,106080.0,2.21034986]
[1750415476040,2e-08,106090.0,106080.0,2.61585691]
[1750415476335,0.56576082,106130.0,106110.0,0.1884496]
[1750415476336,0.2198354,106120.0,106110.0,0.1884496]
[1750415476529,0.2198354,106120.0,106110.0,1.39822308]
[1750415476732,0.2505354,106120.0,106110.0,1.36612308]
[1750415476931,0.2509354,106120.0,106110.0,1.36612308]
[1750415477543,0.2529354,106120.0,106110.0,1.36612308]
[1750415477931,0.2559354,106120.0,106110.0,1.36612308]
[1750415478837,0.2529354,106120.0,106110.0,1.36612308]
[1750415479039,0.2539354,106120.0,106110.0,1.36612308]
[1750415479442,0.2529354,106120.0,106110.0,1.36612308]
[1750415482541,0.2519354,106120.0,106110.0,1.36712308]
[1750415482928,0.2519354,106120.0,106110.0,0.5502496]
[1750415483129,1.10060236,106120.0,106110.0,0.1904495]
[1750415483336,0.1884495,106110.0,106100.0,0.57423568]
[1750415483528,0.2519495,106110.0,106100.0,1.75266916]
[1750415484844,0.2519495,106110.0,106100.0,1.50817337]
[1750415485236,0.2519495,106110.0,106100.0,1.50917337]
[1750415485432,0.2519495,106110.0,106100.0,1.2648022]
[1750415485636,0.2519495,106110.0,106100.0,1.50917337]
[1750415486231,0.32718132,106110.0,106100.0,1.50917337]
[1750415486435,0.32758132,106110.0,106100.0,1.50917337]
[1750415490643,0.07563182,106110.0,106100.0,1.88917337]
[1750415490842,0.07563182,106110.0,106100.0,1.95227337]
[1750415491041,0.07523182,106110.0,106100.0,1.95227337]
[1750415491448,0.65576412,106120.0,106110.0,0.1884495]
[1750415491750,0.65536412,106120.0,106110.0,0.46292067]
[1750415491951,0.65536412,106120.0,106110.0,0.46709474]
[1750415492649,0.65636412,106120.0,106110.0,0.46709474]
[1750415492853,0.65836412,106120.0,106110.0,0.46709474]
[1750415493048,0.65836412,106120.0,106110.0,0.46292067]
[1750415494452,0.29756412,106120.0,106110.0,0.82372067]
[1750415495749,0.10913182,106120.0,106110.0,0.82372067]
[1750415495954,0.10913182,106120.0,106110.0,0.85412067]
[1750415496552,0.29756352,106120.0,106110.0,0.85412067]
[1750415496856,0.29756352,106120.0,106110.0,1.22412067]
[1750415497248,0.29756352,106120.0,106110.0,1.35684067]
[1750415497448,0.10913182,106120.0,106110.0,1.35684067]
[1750415497650,0.0034,106120.0,106110.0,1.60121184]
[1750415497850,0.05983857,106120.0,106110.0,1.60121184]
[1750415498045,0.05943857,106120.0,106110.0,1.60538591]
[1750415498247,0.05983857,106120.0,106110.0,1.62222272]
[1750415498758,0.05883857,106120.0,106110.0,1.62222272]
[1750415498956,0.05683857,106120.0,106110.0,1.62622272]
[1750415499163,0.05643857,106120.0,106110.0,1.62622272]
[1750415499352,0.05683857,106120.0,106110.0,1.62622272]
[1750415499754,0.05683857,106120.0,106110.0,1.63022272]
[1750415500954,0.05683857,106120.0,106110.0,1.49750272]
[1750415501156,0.05683857,106120.0,106110.0,1.78802865]
[1750415501347,0.05683857,106120.0,106110.0,2.49610865]
[1750415503663,0.0004,106120.0,106110.0,2.49610865]
[1750415506259,0.0004,106120.0,106110.0,2.49590865]
[1750415509168,0.0004,106120.0,106110.0,2.47907184]
[1750415509762,0.1888317,106120.0,106110.0,1.4151695]
[1750415509970,0.2206317,106120.0,106110.0,1.49642067]
[1750415510276,0.2538317,106120.0,106110.0,2.20394067]
[1750415510869,0.31027027,106120.0,106110.0,2.20394067]
[1750415511774,0.31027027,106120.0,106110.0,2.17394067]
[1750415512466,0.31027027,106120.0,106110.0,1.13642067]
[1750415512668,0.31027027,106120.0,106110.0,2.14438067]
[1750415512970,0.31027027,106120.0,106110.0,1.84968067]
[1750415513665,0.31027027,106120.0,106110.0,0.94434067]
[1750415513866,0.31027027,106120.0,106110.0,1.51942067]
[1750415514877,0.31027027,106120.0,106110.0,1.50942067]
[1750415515473,0.31027027,106120.0,106110.0,0.80162067]
[1750415515672,0.57343469,106120.0,106110.0,0.7714495]
[1750415515878,0.93423469,106120.0,106110.0,0.1964495]
[1750415516373,0.93422893,106120.0,106110.0,0.76229565]
[1750415523582,0.85900287,106120.0,106110.0,0.76229565]
[1750415524272,0.95303903,106120.0,106110.0,0.76229565]
[1750415526576,0.70866786,106120.0,106110.0,1.00666682]
[1750415528579,0.6146317,106120.0,106110.0,1.00666682]
[1750415531786,0.6146317,106120.0,106110.0,0.76229565]
[1750415534290,0.68983191,106120.0,106110.0,0.76229565]
[1750415534480,0.68983191,106120.0,106110.0,0.18725565]
[1750415534681,0.68983191,106120.0,106110.0,0.76133565]
[1750415538296,0.6146317,106120.0,106110.0,0.76133565]
[1750415539093,0.70866786,106120.0,106110.0,0.75214167]
[1750415539285,0.70866786,106120.0,106110.0,0.78214167]
[1750415539793,0.70966786,106120.0,106110.0,0.78214167]
[1750415540193,0.95403903,106120.0,106110.0,0.75178167]
[1750415540394,0.95503903,106120.0,106110.0,0.75178167]
[1750415541190,0.86100287,106120.0,106110.0,0.75178167]
[1750415544098,0.50020287,106120.0,106110.0,0.75178167]
[1750415544498,0.86100287,106120.0,106110.0,0.75178167]
[1750415548607,0.86100287,106120.0,106110.0,0.78328167]
[1750415548803,0.86101126,106120.0,106110.0,1.02766123]
[1750415549002,0.6166317,106120.0,106110.0,1.02766123]
[1750415549299,0.86101126,106120.0,106110.0,1.02766123]
[1750415549506,0.82781126,106120.0,106110.0,1.06076123]
[1750415550496,0.82781126,106120.0,106110.0,0.80718769]
[1750415550805,0.82781126,106120.0,106110.0,1.05156725]
[1750415554319,0.79601126,106120.0,106110.0,1.05156725]
[1750415554516,0.79561126,106120.0,106110.0,1.05156725]
[1750415554916,0.79601126,106120.0,106110.0,1.05156725]
[1750415555322,0.43521126,106120.0,106110.0,1.05156725]
[1750415555511,0.43521126,106120.0,106110.0,0.80718769]
[1750415555713,0.43521126,106120.0,106110.0,1.05156725]
[1750415559625,0.43521126,106120.0,106110.0,0.80718769]
[1750415559929,0.43521126,106120.0,106110.0,1.05156725]
[1750415561935,0.43521126,106120.0,106110.0,1.07114896]
[1750415562229,0.79601126,106120.0,106110.0,1.06127512]
[1750415562427,0.86091126,106120.0,106110.0,1.06127512]
[1750415563830,0.50011126,106120.0,106110.0,1.06127512]
[1750415564128,0.59439133,106120.0,106110.0,1.06127512]
[1750415564317,0.50011126,106120.0,106110.0,1.06127512]
[1750415566829,0.50011126,106120.0,106110.0,0.81689556]
[1750415567026,0.50011126,106120.0,106110.0,1.06127512]
[1750415570731,0.50011126,106120.0,106110.0,0.48823512]
[1750415570934,0.74449082,106120.0,106110.0,1.00558906]
[1750415572627,0.50011126,106120.0,106110.0,0.7612095]
[1750415573018,0.74449082,106120.0,106110.0,1.00558906]
[1750415573222,0.74449082,106120.0,106110.0,0.99639518]
[1750415574130,0.74449082,106120.0,106100.0,0.81062366]
[1750415574131,0.1884494,106110.0,106100.0,0.0641]
[1750415574430,0.88791199,106110.0,106100.0,0.7612272]
[1750415574631,0.85482896,106110.0,106100.0,0.7612272]
[1750415574835,0.9861391,106110.0,106100.0,0.7612272]
[1750415575330,0.99543658,106110.0,106100.0,0.7622272]
[1750415576030,0.99543658,106110.0,106100.0,0.57376]
[1750415576534,0.99543658,106110.0,106100.0,0.7632272]
[1750415576929,0.99543658,106110.0,106100.0,0.1904672]
[1750415577130,0.99543658,106110.0,106100.0,0.7632272]
[1750415577329,0.99743658,106110.0,106100.0,0.57376]
[1750415577629,0.99743658,106110.0,106100.0,0.001]
[1750415577826,0.1884672,106100.0,106090.0,0.2965867]
[1750415578134,1.23403646,106100.0,106090.0,1.0093467]
[1750415578429,0.9896569,106100.0,106090.0,1.0093467]
[1750415578626,0.9896569,106100.0,106090.0,1.25372626]
[1750415578827,0.9896569,106100.0,106090.0,0.68096626]
[1750415579132,0.85834676,106100.0,106090.0,1.0093467]
[1750415579328,0.85834676,106100.0,106090.0,1.25372626]
[1750415579733,1.10372632,106100.0,106090.0,1.0093467]
[1750415579933,1.10472632,106100.0,106090.0,1.25372626]
[1750415580129,1.10472632,106100.0,106090.0,1.11372626]
[1750415580330,1.10472632,106100.0,106090.0,0.7612294]
[1750415580841,0.188485,106090.0,106080.0,1.01241498]
[1750415581136,0.50821072,106090.0,106080.0,1.89517498]
[1750415582837,0.50921072,106090.0,106080.0,1.65079542]
[1750415583034,0.50921072,106090.0,106080.0,1.89517498]
[1750415583234,0.26483116,106090.0,106080.0,2.13955454]
[1750415583435,0.26583116,106090.0,106080.0,2.13955454]
[1750415584135,0.26583116,106090.0,106080.0,1.82955454]
[1750415584338,0.190485,106090.0,106080.0,1.86955454]
[1750415584632,0.190485,106090.0,106080.0,1.29679454]
[1750415584931,0.190485,106090.0,106080.0,1.86959454]
[1750415585130,0.43486456,106090.0,106080.0,1.86959454]
[1750415585334,0.43486456,106090.0,106080.0,1.62521498]
[1750415586237,0.43486456,106090.0,106080.0,1.86959454]
[1750415586437,0.190485,106090.0,106080.0,1.86959454]
[1750415586737,0.190485,106090.0,106080.0,1.87959454]
[1750415586938,0.26696206,106090.0,106080.0,1.87959454]
[1750415587438,0.190485,106090.0,106080.0,1.87959454]
[1750415589832,0.190485,106090.0,106080.0,1.82959454]
[1750415591032,0.190485,106090.0,106080.0,2.16959454]
[1750415591337,0.190485,106090.0,106080.0,1.82959454]
[1750415592438,0.002,106090.0,106080.0,2.16959454]
[1750415592640,0.0024,106090.0,106080.0,2.17376861]
[1750415593543,0.001,106090.0,106080.0,2.17376861]
[1750415593737,0.05746454,106090.0,106080.0,2.17059454]
[1750415593937,0.05686454,106090.0,106080.0,2.17159454]
[1750415595742,0.05686454,106090.0,106080.0,2.4159741]
[1750415596443,0.05686454,106090.0,106080.0,2.17159454]
[1750415596738,0.05686454,106090.0,106080.0,2.4159741]
[1750415597131,0.05646454,106090.0,106080.0,2.4159741]
[1750415597332,0.05686454,106090.0,106080.0,2.4159741]
[1750415597742,0.05686454,106090.0,106080.0,2.7106741]
[1750415598138,0.05646454,106090.0,106080.0,2.7106741]
[1750415598345,0.05686454,106090.0,106080.0,2.7106741]
[1750415599245,0.05686454,106090.0,106080.0,1.97753542]
[1750415599446,0.05686454,106090.0,106080.0,2.7106741]
[1750415599745,0.05686454,106090.0,106080.0,2.46629454]
[1750415600738,0.05686454,106090.0,106080.0,2.7106741]
[1750415603145,0.05686454,106090.0,106080.0,2.46629454]
[1750415604147,0.05686454,106090.0,106080.0,2.7106741]
[1750415604839,0.05686454,106090.0,106080.0,2.8992021]
[1750415605339,0.0004,106090.0,106080.0,2.8992021]
[1750415610644,0.0004,106090.0,106080.0,2.65482254]
[1750415612253,0.0004,106090.0,106080.0,2.46629454]
[1750415614455,0.05686454,106090.0,106080.0,1.89349454]
[1750415614648,0.08946454,106090.0,106080.0,2.46625454]
[1750415621658,0.08946454,106090.0,106080.0,2.59865454]
[1750415624449,0.033,106090.0,106080.0,2.59865454]
[1750415625762,0.0004,106090.0,106080.0,2.8430341]
[1750415627161,0.05686454,106090.0,106080.0,2.8430341]
[1750415629157,0.05686454,106090.0,106080.0,2.84720817]
[1750415630757,0.05686454,106090.0,106080.0,3.20800817]
[1750415630970,0.0004,106090.0,106080.0,3.20800817]
[1750415634566,0.05686454,106090.0,106080.0,3.20800817]
[1750415635765,0.05686454,106090.0,106080.0,2.96362861]
[1750415636862,0.05686454,106090.0,106080.0,3.20800817]
[1750415637071,0.05646454,106100.0,106090.0,0.1884871]
[1750415637268,0.05646454,106100.0,106090.0,1.70674622]
[1750415638369,0.05686454,106100.0,106090.0,1.70674622]
[1750415638560,0.05786454,106100.0,106090.0,1.70674622]
[1750415639670,0.05886454,106100.0,106090.0,1.70674622]
[1750415642271,0.0024,106100.0,106090.0,1.70674622]
[1750415645473,0.0024,106100.0,106090.0,1.71092029]
[1750415648280,0.0024,106100.0,106090.0,1.95529985]
[1750415648579,0.0024,106100.0,106090.0,1.71092029]
[1750415650181,0.0024,106100.0,106090.0,1.35012029]
[1750415650378,0.0024,106100.0,106090.0,2.07172029]
[1750415654583,0.05886454,106100.0,106090.0,2.07172029]
[1750415655583,0.05886454,106100.0,106090.0,1.35012029]
[1750415655781,0.05886454,106100.0,106090.0,2.07172029]
[1750415656387,0.0024,106100.0,106090.0,2.31609985]
[1750415656576,0.0024,106100.0,106090.0,2.07172029]
[1750415656782,0.0024,106100.0,106090.0,2.31609985]
[1750415658787,0.0024,106100.0,106090.0,2.07172029]
[1750415664395,0.05886454,106100.0,106090.0,2.087019]
[1750415667989,0.05886454,106100.0,106090.0,2.08707335]